fUSD/lending_fUSD_20250828
["ID","MTS","AMOUNT","RATE_DAILY","PERIOD"]
[381830450,1756361455331,-400.0,0.00019813,2]
[381830451,1756361455341,-282.85206473,0.00019813,2]
[381830452,1756361455351,-400.0,0.00019813,2]
[381830453,1756361455360,-646.64,0.00019813,2]
[381830454,1756361455371,-417.14,0.00019813,2]
[381830455,1756361455382,-400.0,0.00019813,2]
[381830456,1756361455391,-400.0,0.00019813,2]
[381830457,1756361455401,-234.58,0.00019813,2]
[381830458,1756361455410,-549.27,0.00019813,2]
[381830459,1756361455420,-461.52,0.00019813,2]
[381830460,1756361455429,-400.0,0.00019813,2]
[381830461,1756361455439,-206.36,0.00019813,2]
[381830462,1756361455448,-400.0,0.00019813,2]
[381830463,1756361455458,-436.74,0.00019813,2]
[381830464,1756361455467,-400.0,0.00019813,2]
[381830465,1756361455477,-415.65,0.00019813,2]
[381830466,1756361455486,-400.0,0.00019813,2]
[381830467,1756361455495,-400.0,0.00019813,2]
[381830468,1756361455505,-606.4,0.00019813,2]
[381830469,1756361455514,-301.15,0.00019813,2]
[381830470,1756361455523,-400.0,0.00019813,2]
[381830471,1756361455534,-400.0,0.00019813,2]
[381830472,1756361455543,-400.0,0.00019813,2]
[381830473,1756361455552,-237.6816639,0.00019813,2]
[381830474,1756361455561,-400.0,0.00019813,2]
[381830475,1756361455571,-400.0,0.00019813,2]
[381830476,1756361455580,-400.0,0.00019813,2]
[381830477,1756361455589,-239.33,0.00019813,2]
[381830478,1756361455599,-328.2,0.00019813,2]
[381830479,1756361455608,-400.0,0.00019813,2]
[381830480,1756361455618,-400.0,0.00019813,2]
[381830481,1756361455627,-400.0,0.00019813,2]
[381830482,1756361455637,-283.08,0.00019814,2]
[381830483,1756361455647,-534.3,0.00019814,2]
[381830484,1756361455656,-199.47,0.00019814,2]
[381830485,1756361455665,-400.0,0.00019814,2]
[381830486,1756361455675,-308.28827769,0.00019814,2]
[381830487,1756361455684,-400.0,0.00019814,2]
[381830488,1756361455693,-400.0,0.00019814,2]
[381830489,1756361455702,-400.0,0.00019814,2]
[381830490,1756361455712,-400.0,0.00019814,2]
[381830491,1756361455721,-319.18369775,0.00019814,2]
[381830492,1756361455730,-400.0,0.00019814,2]
[381830493,1756361455739,-400.0,0.00019814,2]
[381830494,1756361455748,-478.99,0.00019814,2]
[381830495,1756361455757,-427.77,0.00019814,2]
[381830496,1756361455766,-466.19,0.00019814,2]
[381830497,1756361455775,-411.21516945,0.00019815,2]
[381830498,1756361455785,-446.72,0.00019815,2]
[381830499,1756361455794,-643.51,0.00019815,2]
[381830500,1756361455804,-1878.44,0.00019815,2]
[381830501,1756361455813,-400.0,0.00019815,2]
[381830502,1756361455823,-400.0,0.00019815,2]
[381830503,1756361455832,-1799.22,0.00019815,2]
[381830504,1756361455841,-400.0,0.00019815,2]
[381830505,1756361455850,-183.15,0.00019863,2]
[381830506,1756361455859,-1500.0,0.00019868,2]
[381830507,1756361455868,-832.53523902,0.00019869,2]
[381830508,1756361455877,-200.0,0.000199,7]
[381830509,1756361455886,-769.51,0.00019913,2]
[381830510,1756361455895,-10.63556068,0.00019914,2]
[381830511,1756361455918,-389.36443932,0.00019914,2]
[381830512,1756361455927,-400.0,0.00019914,2]
[381830513,1756361455940,-400.0,0.00019914,2]
[381830514,1756361455951,-400.0,0.00019914,2]
[381830515,1756361455960,-400.0,0.00019914,2]
[381830516,1756361455970,-721.86,0.00019914,2]
[381830517,1756361455981,-1611.70991356,0.00019975,2]
[381830518,1756361455990,-152.746,0.0002,2]
[381830519,1756361456000,-1896.395,0.0002,2]
[381830520,1756361456015,-257.91778498,0.00020007,2]
[381830521,1756361456025,-832.53523902,0.00020014,2]
[381830522,1756361456036,-1500.0,0.00020068,2]
[381830523,1756361456045,-1500.0,0.00020068,2]
[381830524,1756361456055,-394.97608261,0.00020087,2]
[381830525,1756361456066,-5.02391739,0.00020087,2]
[381830526,1756361456076,-400.0,0.00020087,2]
[381830527,1756361456085,-400.0,0.00020087,2]
[381830528,1756361456096,-365.89253761,0.00020087,2]
[381830529,1756361456114,-372.43514135,0.00018718,2]
[381830530,1756361456125,-27.56485865,0.00018718,2]
[381830531,1756361456135,-34.10746239,0.00020087,2]
[381830532,1756361456145,-322.20064811,0.00020087,2]
[381830813,1756362282334,-175.32331939,0.00013699,2]
[381830814,1756362286456,-5.60668061,0.00013699,2]
[381830815,1756362286480,-150.0,0.00014199,3]
[381830885,1756362631990,-619.484349,0.00017061,2]
[381830886,1756362632000,-251.0,0.00017147,2]
[381830887,1756362632010,-250.0,0.00017147,2]
[381830888,1756362632019,-250.0,0.00017174,2]
[381830889,1756362632028,-1403.87638881,0.0001719,2]
[381830890,1756362632073,-1096.12361119,0.0001719,2]
[381830891,1756362632082,-178.41,0.00017201,2]
[381830892,1756362632092,-251.0,0.00017216,2]
[381830893,1756362632101,-250.0,0.00017216,2]
[381830894,1756362632111,-300.0,0.00017237,2]
[381830895,1756362632120,-150.0,0.00017237,2]
[381830896,1756362632129,-500.0,0.00017238,2]
[381830897,1756362632138,-264.93838518,0.00017238,2]
[381830898,1756362632147,-152.22292157,0.00017238,2]
[381830899,1756362632156,-500.0,0.00017238,2]
[381830900,1756362632166,-500.0,0.00017238,2]
[381830901,1756362632175,-500.0,0.00017238,2]
[381830902,1756362632184,-500.0,0.00017238,2]
[381830903,1756362632192,-500.0,0.00017238,2]
[381830904,1756362632202,-500.0,0.00017238,2]
[381830905,1756362632211,-500.0,0.00017238,2]
[381830906,1756362632219,-500.0,0.00017238,2]
[381830907,1756362632229,-500.0,0.00017238,2]
[381830908,1756362632238,-500.0,0.00017238,2]
[381830909,1756362632247,-500.0,0.00017238,2]
[381830910,1756362632255,-500.0,0.00017238,2]
[381830911,1756362632264,-500.0,0.00017238,2]
[381830912,1756362632273,-500.0,0.00017238,2]
[381830913,1756362632282,-500.0,0.00017238,2]
[381830914,1756362632291,-500.0,0.00017238,2]
[381830915,1756362632301,-500.0,0.00017238,2]
[381830916,1756362632310,-500.0,0.00017238,2]
[381830917,1756362632319,-500.0,0.00017238,2]
[381830918,1756362632329,-251.43690824,0.00017238,2]
[381830919,1756362632338,-500.0,0.00017238,2]
[381830920,1756362632348,-500.0,0.00017238,2]
[381830921,1756362632357,-500.0,0.00017238,2]
[381830922,1756362632367,-500.0,0.00017238,2]
[381830923,1756362632376,-275.81932478,0.00017238,2]
[381830925,1756362632385,-500.0,0.00017238,2]
[381830927,1756362632394,-500.0,0.00017238,2]
[381830928,1756362632405,-500.0,0.00017238,2]
[381830929,1756362632415,-500.0,0.00017238,2]
[381830930,1756362632424,-457.21609641,0.00017238,2]
[381830931,1756362632451,-42.78390359,0.00017238,2]
[381830932,1756362632460,-500.0,0.00017238,2]
[381830934,1756362632468,-338.52609641,0.00017238,2]
[381830936,1756362632479,-161.47390359,0.00017238,2]
[381830938,1756362632488,-187.43163646,0.00017238,2]
[381831091,1756362639840,-312.56836354,0.00017238,2]
[381831093,1756362639850,-500.0,0.00017238,2]
[381831095,1756362639859,-175.48390862,0.00017238,2]
[381831098,1756362639879,-324.51609138,0.00017238,2]
[381831100,1756362639888,-200.0,0.00017238,2]
[381831102,1756362639897,-2500.0,0.00017239,2]
[381831104,1756362639907,-666.0,0.00017491,3]
[381831106,1756362639916,-9777.97101901,0.000175,2]
[381831108,1756362639928,-178.54,0.0001779,2]
[381831110,1756362639938,-300.0,0.000179,6]
[381831112,1756362639946,-331.89881277,0.000179,2]
[381831114,1756362639955,-955.19057704,0.000179,2]
[381831116,1756362639965,-3371.00858319,0.00017909,2]
[381831118,1756362639974,-379.66471392,0.00017971,2]
[381831120,1756362639984,-200.0,0.00017989,2]
[381831121,1756362639993,-293.73,0.0001799,2]
[381831123,1756362640003,-293.73,0.0001799,2]
[381831125,1756362640012,-400.0,0.00017999,2]
[381831127,1756362640022,-400.0,0.00017999,2]
[381831129,1756362640031,-400.0,0.00017999,2]
[381831132,1756362640041,-400.0,0.00017999,2]
[381831134,1756362640050,-400.0,0.00017999,2]
[381831135,1756362640060,-404.69291743,0.00017999,2]
[381831137,1756362640070,-434.58050358,0.00017999,2]
[381831140,1756362640080,-400.0,0.00017999,2]
[381831142,1756362640090,-400.0,0.00017999,2]
[381831143,1756362640100,-400.0,0.00017999,2]
[381831145,1756362640109,-365.34322413,0.00017999,2]
[381831148,1756362640119,-361.09754346,0.00017999,2]
[381831149,1756362640130,-191.28491442,0.00017999,2]
[381831152,1756362640139,-205.00862186,0.00017999,2]
[381831153,1756362640149,-7175.56843868,0.00018,2]
[381831157,1756362640170,-2017.3,0.00018,2]
[381831160,1756362640189,-1281.24390474,0.00018,2]
[381831162,1756362640204,-1113.2000001,0.00018,2]
[381831164,1756362640215,-418.55768,0.00018,2]
[381831432,1756362642871,-400.0,0.00017999,2]
[381831434,1756362642880,-11767.25446917,0.00018,2]
[381831450,1756362643022,-400.0,0.00017999,2]
[381831452,1756362643032,-1600.0,0.00018,2]
[381831751,1756362645887,-400.0,0.00017999,2]
[381831753,1756362645896,-400.0,0.00017999,2]
[381831755,1756362645906,-5406.499809,0.00018,2]
[381831784,1756362646195,-774.96538431,0.00018,2]
[381831788,1756362646227,-35.8750962,0.00018,2]
[381832911,1756363238418,-164.75717689,0.00016111,2]
[381832931,1756363299776,-152.0,0.00013699,2]
[381832932,1756363302416,-19.88,0.00013699,2]
[381832933,1756363302439,-54.91790665,0.00016111,2]
[381832987,1756363640364,268.05119885,0.000301,120]
[381833036,1756363690340,-500.0,0.0001625,3]
[381833041,1756363698775,-272.0,0.0001625,3]
[381833044,1756363740935,-199.0,0.000153,2]
[381833051,1756363832136,-33.0,0.000153,2]
[381833052,1756363832147,-247.2729,0.000162,2]
[381833053,1756363832157,-228.0,0.0001625,3]
[381833054,1756363832167,-214.5347064,0.0001648,2]
[381833055,1756363832178,-12.4652936,0.0001648,2]
[381833056,1756363832187,-929.39341291,0.00016798,2]
[381833057,1756363832198,-270.60658709,0.00016798,2]
[381833058,1756363832208,-272.0,0.00016798,2]
[381833059,1756363832217,-10.39341291,0.00016799,2]
[381833060,1756363832228,-139.60658709,0.00016799,2]
[381833061,1756363832238,-200.0,0.00016907,2]
[381833062,1756363832248,-206.91022491,0.00017363,2]
[381833063,1756363832257,-344.322588,0.00017363,2]
[381833064,1756363832335,-93.03490773,0.00017363,2]
[381833065,1756363832345,-186.30444922,0.00017363,2]
[381833066,1756363832354,-128.88056587,0.00017364,2]
[381833077,1756363838571,-583.49298981,0.00016798,2]
[381833078,1756363838579,-500.0,0.00016798,2]
[381833079,1756363838589,-500.0,0.00016798,2]
[381833080,1756363838598,-500.0,0.00016798,2]
[381833081,1756363838607,-500.0,0.00016798,2]
[381833082,1756363838617,-500.0,0.00016798,2]
[381833083,1756363838626,-500.0,0.00016798,2]
[381833084,1756363838637,-192.70394213,0.00016798,2]
[381833085,1756363838647,-66306.36052373,0.00017364,2]
[381833086,1756363838657,-3173.0604019,0.00017364,2]
[381833087,1756363838667,-606.17393438,0.00017364,2]
[381833088,1756363838676,-13735.66,0.00017364,2]
[381833089,1756363838685,-19999.99,0.00017364,2]
[381833090,1756363838694,-74254.67,0.00017364,2]
[381833091,1756363838703,-150.99,0.00017364,2]
[381833092,1756363838712,-859.67151939,0.00017422,2]
[381833093,1756363838722,-1000.0,0.00017463,2]
[381833094,1756363838730,-1682.82,0.0001747,2]
[381833095,1756363838740,-16145.04,0.0001748,2]
[381833096,1756363838749,-3460.04,0.0001748,2]
[381833097,1756363838758,-29999.99,0.0001748,2]
[381833098,1756363838768,-160.0,0.00017522,7]
[381833099,1756363838777,-223.0,0.0001767,2]
[381833100,1756363838787,-832.53523903,0.0001772,2]
[381833101,1756363838796,-173.62,0.00017784,2]
[381833102,1756363838805,-1079.16,0.00017784,2]
[381833103,1756363838814,-817.26,0.00017784,2]
[381833104,1756363838824,-408.73,0.00017784,2]
[381833105,1756363838833,-408.73,0.00017784,2]
[381833106,1756363838847,-408.73,0.00017784,2]
[381833107,1756363838858,-408.79,0.00017784,2]
[381833108,1756363838868,-497.8,0.00017798,2]
[381833109,1756363838877,-1517.116,0.00017799,2]
[381833110,1756363838887,-152.746,0.00017799,2]
[381833111,1756363838896,-400.0,0.000178,6]
[381833112,1756363838904,-300.0,0.000178,6]
[381833113,1756363838914,-1000.0,0.0001782,3]
[381833114,1756363838923,-474.4363475,0.00017838,2]
[381833115,1756363838931,-1682.82,0.00017887,2]
[381833116,1756363838940,-440.58,0.00017887,2]
[381833117,1756363838949,-1682.82,0.00017888,2]
[381833118,1756363838958,-416.56,0.00017897,2]
[381833119,1756363838972,-400.0,0.00017897,2]
[381833120,1756363838980,-346.01,0.00017897,2]
[381833121,1756363838989,-332.16,0.00017897,2]
[381833122,1756363838998,-400.0,0.00017897,2]
[381833123,1756363839007,-400.0,0.00017897,2]
[381833124,1756363839018,-313.66,0.00017897,2]
[381833125,1756363839027,-400.0,0.00017897,2]
[381833126,1756363839035,-400.0,0.00017897,2]
[381833127,1756363839047,-400.0,0.00017897,2]
[381833128,1756363839057,-255.33431671,0.00017897,2]
[381833129,1756363839066,-400.0,0.00017897,2]
[381833130,1756363839075,-400.0,0.00017897,2]
[381833131,1756363839084,-465.68002764,0.00017897,2]
[381833132,1756363839093,-400.0,0.00017897,2]
[381833134,1756363839102,-542.52300763,0.00017897,2]
[381833135,1756363839111,-400.0,0.00017897,2]
[381833137,1756363839121,-400.0,0.00017897,2]
[381833138,1756363839131,-400.0,0.00017897,2]
[381833139,1756363839140,-400.0,0.00017898,2]
[381833140,1756363839150,-400.0,0.00017898,2]
[381833141,1756363839161,-354.15,0.00017898,2]
[381833142,1756363839170,-400.0,0.00017898,2]
[381833143,1756363839179,-400.0,0.00017898,2]
[381833144,1756363839187,-400.0,0.00017898,2]
[381833145,1756363839197,-400.0,0.00017898,2]
[381833146,1756363839206,-197.73,0.00017898,2]
[381833147,1756363839215,-152.31,0.00017898,2]
[381833148,1756363839224,-400.0,0.00017898,2]
[381833149,1756363839233,-281.45,0.00017898,2]
[381833150,1756363839242,-355.27,0.00017898,2]
[381833151,1756363839251,-368.65,0.00017898,2]
[381833152,1756363839260,-156.18,0.00017898,2]
[381833153,1756363839269,-400.0,0.00017898,2]
[381833154,1756363839281,-398.33,0.00017898,2]
[381833155,1756363839290,-400.0,0.00017898,2]
[381833156,1756363839301,-400.0,0.00017898,2]
[381833157,1756363839311,-400.0,0.00017898,2]
[381833158,1756363839320,-324.77,0.00017898,2]
[381833159,1756363839330,-400.0,0.00017898,2]
[381833160,1756363839339,-313.49,0.00017898,2]
[381833161,1756363839350,-400.0,0.00017898,2]
[381833162,1756363839359,-232.84,0.00017898,2]
[381833163,1756363839369,-212.91,0.00017898,2]
[381833164,1756363839378,-170.5,0.00017898,2]
[381833165,1756363839388,-417.81,0.00017898,2]
[381833166,1756363839399,-268.01,0.00017898,2]
[381833167,1756363839409,-317.61,0.00017898,2]
[381833168,1756363839419,-278.83,0.00017898,2]
[381833169,1756363839428,-377.79,0.00017898,2]
[381833170,1756363839437,-358.49,0.00017898,2]
[381833171,1756363839446,-298.9,0.00017898,2]
[381833172,1756363839455,-400.0,0.00017898,2]
[381833173,1756363839465,-312.45,0.00017898,2]
[381833174,1756363839474,-294.05,0.00017898,2]
[381833175,1756363839483,-400.0,0.00017898,2]
[381833176,1756363839492,-294.05,0.00017898,2]
[381833177,1756363839501,-400.0,0.00017898,2]
[381833178,1756363839513,-400.0,0.00017898,2]
[381833179,1756363839523,-400.0,0.00017898,2]
[381833180,1756363839532,-400.0,0.00017898,2]
[381833181,1756363839541,-265.22,0.00017898,2]
[381833182,1756363839550,-358.56,0.00017898,2]
[381833183,1756363839560,-400.0,0.00017898,2]
[381833184,1756363839568,-508.77,0.00017898,2]
[381833185,1756363839577,-482.34,0.00017898,2]
[381833186,1756363839586,-241.72,0.00017898,2]
[381833187,1756363839595,-349.3,0.00017898,2]
[381833188,1756363839604,-400.0,0.00017898,2]
[381833189,1756363839613,-242.57,0.00017898,2]
[381833190,1756363839622,-178.17,0.00017898,2]
[381833191,1756363839631,-215.51,0.00017898,2]
[381833192,1756363839640,-385.83,0.00017898,2]
[381833193,1756363839649,-448.43,0.00017898,2]
[381833194,1756363839658,-400.0,0.00017898,2]
[381833195,1756363839667,-411.09,0.00017898,2]
[381833196,1756363839676,-235.42,0.00017898,2]
[381833197,1756363839685,-493.97403808,0.00017898,2]
[381833198,1756363839694,-400.0,0.00017898,2]
[381833199,1756363839703,-400.0,0.00017898,2]
[381833200,1756363839712,-158.67,0.00017898,2]
[381833201,1756363839722,-210.73,0.00017898,2]
[381833202,1756363839732,-400.0,0.00017898,2]
[381833203,1756363839741,-400.0,0.00017898,2]
[381833204,1756363839750,-400.0,0.00017898,2]
[381833205,1756363839759,-400.0,0.00017898,2]
[381833206,1756363839768,-400.0,0.00017898,2]
[381833207,1756363839777,-183.58,0.00017898,2]
[381833208,1756363839786,-200.0,0.00017898,2]
[381833209,1756363839796,-420.73,0.00017898,2]
[381833210,1756363839806,-164.47,0.00017898,2]
[381833211,1756363839815,-400.0,0.00017898,2]
[381833212,1756363839824,-400.0,0.00017898,2]
[381833213,1756363839834,-400.0,0.00017898,2]
[381833214,1756363839843,-400.0,0.00017898,2]
[381833215,1756363839852,-400.0,0.00017898,2]
[381833216,1756363839862,-521.22,0.00017898,2]
[381833217,1756363839871,-500.0,0.00017898,2]
[381833218,1756363839881,-242.74,0.00017898,2]
[381833219,1756363839891,-507.22,0.00017898,2]
[381833220,1756363839900,-302.22,0.00017898,2]
[381833221,1756363839909,-163.20982842,0.00017898,2]
[381833222,1756363839919,-350.85645806,0.00017898,2]
[381833223,1756363839928,-324.35722296,0.00017898,2]
[381833224,1756363839937,-347.78,0.00017898,2]
[381833225,1756363839947,-400.0,0.00017898,2]
[381833226,1756363839956,-227.11,0.00017898,2]
[381833227,1756363839967,-364.28,0.00017898,2]
[381833228,1756363839976,-364.69,0.00017898,2]
[381833229,1756363839986,-216.31,0.00017898,2]
[381833230,1756363839995,-400.0,0.00017898,2]
[381833231,1756363840004,-400.0,0.00017898,2]
[381833232,1756363840013,-400.0,0.00017898,2]
[381833233,1756363840023,-415.91,0.00017898,2]
[381833234,1756363840032,-255.13,0.00017898,2]
[381833235,1756363840041,-400.0,0.00017898,2]
[381833236,1756363840050,-352.25,0.00017898,2]
[381833237,1756363840060,-400.0,0.00017898,2]
[381833238,1756363840070,-400.0,0.00017898,2]
[381833239,1756363840080,-312.76700463,0.00017898,2]
[381833240,1756363840089,-286.01,0.00017898,2]
[381833241,1756363840098,-400.0,0.00017898,2]
[381833242,1756363840108,-217.5,0.00017898,2]
[381833243,1756363840117,-400.0,0.00017898,2]
[381833244,1756363840126,-400.0,0.00017898,2]
[381833245,1756363840135,-400.0,0.00017898,2]
[381833246,1756363840145,-601.97,0.00017898,2]
[381833247,1756363840154,-230.3,0.00017898,2]
[381833248,1756363840163,-281.47,0.00017898,2]
[381833249,1756363840173,-400.0,0.00017898,2]
[381833250,1756363840182,-400.0,0.00017898,2]
[381833251,1756363840191,-400.0,0.00017898,2]
[381833252,1756363840201,-400.0,0.00017898,2]
[381833253,1756363840210,-372.35,0.00017898,2]
[381833254,1756363840220,-400.0,0.00017898,2]
[381833255,1756363840229,-400.0,0.00017898,2]
[381833256,1756363840238,-400.0,0.00017898,2]
[381833257,1756363840247,-323.42,0.00017898,2]
[381833258,1756363840256,-400.0,0.00017898,2]
[381833259,1756363840265,-454.77,0.00017898,2]
[381833260,1756363840274,-298.74,0.00017898,2]
[381833261,1756363840283,-486.48,0.00017898,2]
[381833262,1756363840292,-400.0,0.00017898,2]
[381833263,1756363840301,-400.0,0.00017898,2]
[381833264,1756363840310,-400.0,0.00017898,2]
[381833265,1756363840319,-357.83,0.00017898,2]
[381833266,1756363840328,-400.0,0.00017898,2]
[381833267,1756363840337,-475.07,0.00017898,2]
[381833268,1756363840347,-400.0,0.00017898,2]
[381833269,1756363840358,-241.5,0.00017898,2]
[381833270,1756363840368,-400.0,0.00017898,2]
[381833271,1756363840377,-265.79,0.00017898,2]
[381833272,1756363840387,-400.0,0.00017898,2]
[381833273,1756363840395,-400.0,0.00017898,2]
[381833274,1756363840404,-400.0,0.00017898,2]
[381833275,1756363840413,-198.97,0.00017898,2]
[381833276,1756363840422,-400.0,0.00017898,2]
[381833277,1756363840431,-400.0,0.00017898,2]
[381833278,1756363840441,-194.24,0.00017898,2]
[381833279,1756363840450,-400.0,0.00017898,2]
[381833280,1756363840459,-400.0,0.00017898,2]
[381833281,1756363840468,-400.0,0.00017899,2]
[381833282,1756363840477,-400.0,0.00017899,2]
[381833283,1756363840486,-243.96,0.00017899,2]
[381833284,1756363840496,-400.0,0.00017899,2]
[381833285,1756363840505,-400.0,0.00017899,2]
[381833286,1756363840514,-400.0,0.00017899,2]
[381833287,1756363840524,-361.10247882,0.00017899,2]
[381833288,1756363840533,-400.0,0.00017899,2]
[381833289,1756363840544,-400.0,0.00017899,2]
[381833290,1756363840695,-264.16,0.00017899,2]
[381833291,1756363840705,-400.0,0.00017899,2]
[381833292,1756363840714,-400.0,0.00017899,2]
[381833293,1756363840725,-400.0,0.00017899,2]
[381833294,1756363840734,-376.3,0.00017899,2]
[381833295,1756363840744,-400.0,0.00017899,2]
[381833296,1756363840753,-35911.37227258,0.000179,2]
[381833297,1756363840762,-800.0,0.000179,6]
[381833298,1756363840771,-700.0,0.000179,6]
[381833299,1756363840780,-1572.816785,0.000179,2]
[381833300,1756363840789,-151.0,0.000179,2]
[381833301,1756363840799,-1572.816785,0.000179,2]
[381833302,1756363840808,-1572.816785,0.000179,2]
[381833303,1756363840817,-1572.816785,0.000179,2]
[381833304,1756363840826,-151.0,0.000179,2]
[381833305,1756363840835,-151.0,0.000179,2]
[381833306,1756363840845,-1386.818834,0.000179,2]
[381833307,1756363840854,-793.19,0.00017918,2]
[381833308,1756363840863,-150.0,0.0001793,2]
[381833309,1756363840875,-527.0,0.0001793,3]
[381833310,1756363840884,-150.0,0.0001793,2]
[381833311,1756363840893,-500.0,0.0001793,3]
[381833312,1756363840902,-150.0,0.0001793,3]
[381833313,1756363840912,-150.0,0.0001793,3]
[381833314,1756363840921,-265.47767371,0.0001793,2]
[381833315,1756363840930,-150.0,0.0001793,3]
[381833316,1756363840939,-150.0,0.0001793,3]
[381833317,1756363840948,-150.0,0.00017973,2]
[381833318,1756363840957,-257.37468648,0.00017973,2]
[381833319,1756363840968,-150.0,0.00017973,2]
[381833320,1756363840977,-150.0,0.00017973,2]
[381833321,1756363840987,-150.0,0.00017973,2]
[381833323,1756363840996,-150.0,0.00017973,2]
[381833324,1756363841005,-1682.82,0.00017979,2]
[381833325,1756363841014,-1682.82,0.00017989,2]
[381833326,1756363841024,-196.12816863,0.0001799,2]
[381833328,1756363841033,-400.0,0.00017997,2]
[381833329,1756363841043,-400.0,0.00017997,2]
[381833330,1756363841052,-400.0,0.00017997,2]
[381833331,1756363841062,-400.0,0.00017997,2]
[381833332,1756363841071,-400.0,0.00017997,2]
[381833333,1756363841081,-373.78,0.00017997,2]
[381833334,1756363841090,-400.0,0.00017997,2]
[381833335,1756363841099,-400.0,0.00017997,2]
[381833336,1756363841108,-400.0,0.00017997,2]
[381833338,1756363841119,-400.0,0.00017997,2]
[381833340,1756363841128,-400.0,0.00017997,2]
[381833342,1756363841138,-211.45,0.00017997,2]
[381833344,1756363841147,-400.0,0.00017997,2]
[381833346,1756363841156,-269.1,0.00017997,2]
[381833348,1756363841166,-200.44,0.00017997,2]
[381833350,1756363841175,-303.92,0.00017997,2]
[381833352,1756363841185,-355.25,0.00017997,2]
[381833354,1756363841194,-376.3,0.00017997,2]
[381833356,1756363841204,-400.0,0.00017997,2]
[381833358,1756363841213,-400.0,0.00017997,2]
[381833360,1756363841223,-400.0,0.00017997,2]
[381833362,1756363841232,-400.0,0.00017997,2]
[381833364,1756363841241,-400.0,0.00017997,2]
[381833365,1756363841251,-400.0,0.00017997,2]
[381833366,1756363841261,-489.33,0.00017997,2]
[381833367,1756363841271,-400.0,0.00017997,2]
[381833368,1756363841280,-235.40227952,0.00017997,2]
[381833369,1756363841290,-400.0,0.00017997,2]
[381833370,1756363841299,-400.0,0.00017997,2]
[381833371,1756363841308,-297.07,0.00017997,2]
[381833372,1756363841318,-150.0,0.00017997,2]
[381833373,1756363841328,-150.0,0.00017997,2]
[381833374,1756363841338,-439.16,0.00017997,2]
[381833375,1756363841348,-448.53,0.00017997,2]
[381833376,1756363841358,-150.0,0.00017997,2]
[381833377,1756363841368,-155.12880349,0.00017997,2]
[381833378,1756363841377,-150.0,0.00017997,2]
[381833379,1756363841387,-400.0,0.00017997,2]
[381833380,1756363841397,-321.84,0.00017997,2]
[381833381,1756363841407,-510.91,0.00017997,2]
[381833382,1756363841416,-546.59547007,0.00017998,5]
[381833383,1756363841426,-151.0,0.00017998,2]
[381833384,1756363841439,-328.852868,0.00017998,2]
[381833385,1756363841449,-151.0,0.00017998,2]
[381833386,1756363841459,-328.852868,0.00017998,2]
[381833387,1756363841468,-201.01437,0.00017998,2]
[381833388,1756363841478,-328.852868,0.00017998,2]
[381833389,1756363841488,-328.852868,0.00017998,2]
[381833390,1756363841498,-151.0,0.00017998,2]